Cogmind - Beta 16 @@@ ROGUE MODE // 2025.10.31 @ 02:03:09 Player: Scringis Result: Destroyed by G-47 Trooper with Particle Gun Performance ------------- Evolutions (2) 1000 Regions Visited (5) 1000 Robots Destroyed (85) 425 Value Destroyed (3046) 3046 Prototype IDs (6) 120 Alien Tech Used (0) 0 Bonus (-30) -30 TOTAL SCORE: 5561 Bonus ------- High Alert Combat Kills 29 Friendly Fire -59 Cogmind --------- Core Integrity 0/550 Matter 182/300 Energy 24/160 System Corruption 4% Temperature Cool (9) Movement Core (500) Ox9 Location -8/Storage Parts ------- > --- POWER (1) -------- Light Nuclear Core > --- PROPULSION (2) --- (None) > --- UTILITY (4) ------ Improved Cooling System Large Storage Unit Weapon Cycler > --- WEAPON (4) ------- Advanced Beam Rifle > --- INVENTORY (15) --- Nuclear Core Light Treads Light Treads Carbon-fiber Leg Carbon-fiber Leg Carbon-fiber Leg Recoil Stabilizer Graphene Brace Gauss Rifle Mining Laser Peak State ------------ > --- POWER ------------ Light Nuclear Core > --- PROPULSION ------- Armored Treads Armored Treads > --- UTILITY ---------- Improved Cooling System Large Storage Unit Weapon Cycler Improved Light Armor Plating > --- WEAPON ----------- Advanced Beam Rifle Gauss Rifle Gauss Rifle Gauss Rifle > --- INVENTORY -------- Improved Ion Engine Nuclear Core Light Nuclear Core Light Treads Light Treads Carbon-fiber Leg Carbon-fiber Leg Carbon-fiber Leg Recoil Stabilizer Recoil Stabilizer Graphene Brace Pulse Rifle Advanced Beam Rifle Gauss Rifle Mining Laser [Rating: 41] Favorites ----------- Power Light Nuclear Core Engine Improved Ion Engine Power Core Light Nuclear Core Propulsion Light Treads Treads Light Treads Leg Carbon-fiber Leg Flight Unit Improved Flight Unit Utility Large Storage Unit Device Improved Heat Sink Storage Large Storage Unit Processor Improved Targeting Computer Protection Improved Light Armor Plating Weapon Gauss Rifle Energy Gun Advanced Beam Rifle Energy Cannon Ion Cannon Ballistic Gun Gauss Rifle Launcher Grenade Launcher Build | -11 -10 -10 -10 -8 -8 ------- Run | Yrd Mat Min Sub Mat Sto Slots Evolved 4 | . . . . 4 . Power . | . . . . . . Propulsion . | . . . . . . Utility 2 | . . . . 2 . Weapon 2 | . . . . 2 . Parts Attached 66 | 7 8 1 7 37 6 Power 10 | 1 1 . 1 5 2 Engine 4 | 1 . . 1 2 . Core 6 | . 1 . . 3 2 Reactor . | . . . . . . Propulsion 16 | 2 2 . 2 8 2 Treads 13 | 2 2 . 2 7 . Leg 2 | . . . . . 2 Wheel . | . . . . . . Hover . | . . . . . . Flight 1 | . . . . 1 . Utility 15 | 1 3 . 1 8 2 Device 7 | . 1 . . 4 2 Storage 2 | 1 1 . . . . Processor 2 | . 1 . 1 . . Hackware . | . . . . . . Protection 4 | . . . . 4 . Artifact . | . . . . . . Weapon 25 | 3 2 1 3 16 . Energy Gun 9 | . 1 1 2 5 . Energy Cannon 3 | . . . . 3 . Ballistic Gun 12 | 3 1 . . 8 . Ballistic Cannon . | . . . . . . Launcher 1 | . . . 1 . . Special Weapon . | . . . . . . Impact Weapon . | . . . . . . Slashing Weapon . | . . . . . . Piercing Weapon . | . . . . . . Special Melee Weapon . | . . . . . . Unidentified Prototypes 4 | . . . . 4 . Parts Lost 37 | . . 2 6 19 10 Power 7 | . . 1 1 4 1 Propulsion 6 | . . . 2 3 1 Utility 7 | . . . . 4 3 Weapon 17 | . . 1 3 8 5 Highest Loss Streak 8 | . . 1 6 8 8 To Critical Strikes . | . . . . . . Average Backups 8 | 2 6 8 7 9 13 Power 2 | . 2 2 1 1 1 Propulsion 1 | . . 1 1 1 4 Utility 2 | . 1 3 2 2 3 Weapon 3 | . 2 2 1 3 3 Tool/Special . | . . . . . . Unused Backups 9 | . 1 . . 3 5 Power 1 | . . . . . 1 Propulsion 1 | . . . . . 1 Utility 3 | . 1 . . . 2 Weapon 4 | . . . . 3 1 Tool/Special . | . . . . . . Average Slot Usage (%) 93 | . 98 99 96 88 96 Engine 4 | . 1 10 13 4 3 Core 6 | . 12 3 . 4 5 Treads 22 | . 28 28 27 17 17 Device 9 | . 9 . . 10 20 Storage 11 | . 14 14 14 9 9 Processor 4 | . 3 14 14 2 . Protection 4 | . . . . 8 5 Energy Gun 7 | . 3 21 14 4 9 Energy Cannon 4 | . . . . 9 . Ballistic Gun 17 | . 24 6 . 16 26 Launcher 1 | . . . 11 . . Peak Build Rating 41 | 6 12 11 10 40 41 Average Rating 20 | 4 10 10 9 26 39 On Entrance 12 | . 6 11 10 10 40 Avg Prop Armor Cover (%) . | . . . . . . Naked Turns . | . . . . . . Heaviest Build 52 | 13 29 30 30 52 47 Greatest Support 40 | 40 40 40 40 40 40 Greatest Overweight (x) 1 | . . . . 1 1 Average Overweight (x) . | . . . . . 1 Largest Inventory Capacity 15 | 8 15 15 15 15 15 Average Capacity 13 | 6 9 15 15 15 15 Most Carried 15 | 5 10 11 11 15 15 Average Carried 8 | 2 6 8 6 9 13 Final Capacity 15 | 8 15 15 15 15 15 Final Carried 14 | 2 10 11 6 14 10 Class Distribution -------------------- 48% | Mutant 21% | Scavenger-Tank 18% | Tank 6% | Scavenger-Gunner 4% | Scavenger-Mutant Dominant Class ---------------- Mutant | -10/Materials Mutant | -10/Mines Mutant | -10/Subcaves Tank | -8/Materials Scavenger-Tank | -8/Storage Resources | -11 -10 -10 -10 -8 -8 ----------- Run | Yrd Mat Min Sub Mat Sto Matter Collected 2258 | 251 330 93 75 992 517 Remotely . | . . . . . . Salvage Created 3549 | . 555 154 139 1843 858 Parts 202 | . 26 7 8 106 55 Haulers Intercepted 4 | . 1 . . 3 . Recyclers Shooed 1 | . . . . 1 . Parts Field Recycled . | . . . . . . Retrieved Matter . | . . . . . . Parts Self-Destructed 8 | . . . 8 . . Prevented . | . . . . . . Parts Restored . | . . . . . . Kills | -11 -10 -10 -10 -8 -8 ------- Run | Yrd Mat Min Sub Mat Sto Combat Hostiles Destroyed 68 | . 11 5 3 33 16 Guns 54 | . 11 5 1 21 16 Cannons 9 | . . . . 9 . AOE 4 | . . . 2 2 . Classes Destroyed 15 | . 4 1 2 7 1 Worker 3 | . . . . 3 . Builder 4 | . 1 . . 1 2 Tunneler 1 | . . . . 1 . Hauler 4 | . 1 . . 3 . Recycler 1 | . . . . 1 . Mechanic 2 | . . . . 1 1 Watcher 2 | . 1 . . . 1 Swarmer 8 | . . 3 . 3 2 Grunt 38 | . 11 2 . 19 6 Protector 1 | . . . . . 1 Sentry 12 | . . . . 7 5 Hunter 4 | . . . . 2 2 Heavy 2 | . . . . 2 . Subdweller 3 | . . . 3 . . Scientist 1 | . . . 1 . . Best Kill Streak 7 | . 4 3 3 6 7 Combat Bots Only 7 | . 4 3 3 4 7 Max Kills in Single Turn 2 | . 1 2 2 2 2 Gunslinging 1 | . . 1 . . . Exploded 1 | . . . 1 1 . Melee . | . . . . . . Uniques/NPCs Destroyed . | . . . . . . Combat | -11 -10 -10 -10 -8 -8 -------- Run | Yrd Mat Min Sub Mat Sto Hostile Shots Fired 460 | . 56 31 27 236 110 Missed 132 | . 12 5 5 84 26 Hits 328 | . 44 26 22 152 84 Melee 7 | . . . . . 7 Projectile 321 | . 44 26 22 152 77 Critical Strikes 10 | . . . . 8 2 Damage Taken 5447 | . 526 315 547 2797 1262 Core 799 | . 112 51 85 354 197 Absorbed by Shields . | . . . . . . Core Remaining (%) 50 | 100 . . . . . Volleys Fired 218 | . 46 14 8 109 41 Largest 4 | . 2 2 2 4 4 Hottest 213 | . 60 85 85 180 213 Shots Fired 609 | . 93 26 13 314 163 Gun 511 | . 93 26 11 218 163 Cannon 87 | . . . . 87 . Launcher 11 | . . . 2 9 . Special . | . . . . . . Kinetic 380 | . 90 11 . 164 115 Thermal 189 | . . . . 141 48 Explosive 11 | . . . 2 9 . Electromagnetic 29 | . 3 15 11 . . Robot Hit Streak 19 | . 14 8 16 19 15 Robot Miss Streak 5 | . 3 4 . 5 3 Penetration Max 1 | . . . . 1 1 Secondary Targets 7 | . . 1 1 1 4 Max Gunslinging Chain 1 | . . 1 1 1 1 Shots Hit Robots 389 | . 62 15 13 201 98 Core Hits 165 | . 28 7 7 86 37 Critical Kills 5 | . . . . 3 2 Critical Parts Destroyed 1 | . . . . . 1 Critical Strikes 11 | . . 1 . 6 4 Burn 4 | . . . . 3 1 Meltdown 1 | . . . . 1 . Destroy 5 | . . . . 2 3 Corrupt 1 | . . 1 . . . Melee Attacks . | . . . . . . Impact . | . . . . . . Slashing . | . . . . . . Piercing . | . . . . . . Sneak Attacks . | . . . . . . Combat Hostiles . | . . . . . . Follow-up Attacks . | . . . . . . Damage Inflicted 7719 | . 756 208 316 4223 2216 Guns 5632 | . 726 208 130 2352 2216 Cannons 1401 | . . . . 1401 . Explosions 650 | . 26 . 186 438 . Melee . | . . . . . . Ramming 36 | . 4 . . 32 . Kinetic 4075 | . 692 38 . 1760 1585 Thermal 2650 | . 26 . . 1993 631 Explosive 624 | . . . 186 438 . Electromagnetic 334 | . 34 170 130 . . Impact . | . . . . . . Slashing . | . . . . . . Piercing . | . . . . . . Highest Corruption 4 | . 2 2 2 2 4 Average Corruption 2 | . 2 2 2 2 2 Corruption Purged . | . . . . . . Corruption Blocked . | . . . . . . Effects 29 | . 5 6 3 7 8 Message Errors 7 | . 1 1 2 2 1 Matter Fused 11 | . 3 2 1 1 4 Heat Flow Errors 1 | . . 1 . . . Energy Discharges 2 | . . 1 . . 1 Data Loss (minor) 1 | . . . . 1 . Data Loss (major) 1 | . . . . . 1 Misfires 2 | . 1 . . . 1 Alerts 2 | . . 1 . 1 . Weapon Failures 2 | . . . . 2 . Overload Shots . | . . . . . . Overflow Damage 28 | . . . . 28 . Projectiles 9 | . . . . 9 . Explosions 19 | . . . . 19 . Melee . | . . . . . . Knockbacks . | . . . . . . Impact . | . . . . . . Kinetic . | . . . . . . Secondary . | . . . . . . Self-Inflicted Damage 58 | . . . 58 . . Shots 2 | . . . 2 . . Rammed 6 | . . . . 6 . Targets Rammed 8 | . 1 . . 7 . Kicked . | . . . . . . Crushed 2 | . 1 . . 1 . Highest Temperature 480 | . 12 244 . 480 182 Average Temperature 104 | . 7 53 . 141 49 Received Heat Transfer 2046 | . 300 150 48 1053 495 Effects 4 | . . . . 4 . Shutdowns 2 | . . . . 2 . Interference 1 | . . . . 1 . Matter Decay 1 | . . . . 1 . Siege Activations . | . . . . . . Martial Activations . | . . . . . . Shielding Activations . | . . . . . . Robots Disrupted . | . . . . . . Combat Hostiles . | . . . . . . Robots Corrupted . | . . . . . . Combat Hostiles . | . . . . . . Parts Fried 1 | . . 1 . . . Impact Corruptions . | . . . . . . Robots Melted 1 | . . . . 1 . Combat Hostiles 1 | . . . . 1 . Parts Melted 9 | . . . . 9 . Heat Transferred 5061 | . . . . 3811 1250 Parts Sabotaged . | . . . . . . Parts Stolen . | . . . . . . Parts Stripped . | . . . . . . Power Chain Reactions 1 | . 1 . . . . Alert | -11 -10 -10 -10 -8 -8 ------- Run | Yrd Mat Min Sub Mat Sto Maximum Alert Level 2 | . . . . 1 2 Low Security (%) 85 | 100 100 100 . 80 58 Level 1 11 | . . . . 19 19 Level 2 2 | . . . . . 21 Level 3 . | . . . . . . Level 4 . | . . . . . . Level 5 . | . . . . . . High Security . | . . . . . . Max Security . | . . . . . . Peak Influence 482 | . 90 50 . 336 482 Initial 135 | . . . . . 135 Average 89 | . 20 10 . 113 223 Influence Increases 2051 | . 301 120 . 1023 607 Destroy 0b10 Robot/C 1280 | . 220 100 . 660 300 Destroy 0b10 Robot/NC 95 | . 15 . . 50 30 Destroy Leader 382 | . 64 20 . 196 102 Successful Hack 5 | . . . . . 5 Disable Machine 75 | . . . . 60 15 Anti-Garrison Action 150 | . . . . . 150 Destroy Structure 34 | . 2 . . 27 5 Lose Combat Pursuer 30 | . . . . 30 . Influence Decreases 1655 | . 301 120 . 701 533 Entered New Map 187 | . . . . . 187 Time Decay 1168 | . 301 100 . 521 246 Lost Part 300 | . . 20 . 180 100 Squads Dispatched 17 | . 3 . . 7 7 Investigation 5 | . 1 . . 1 3 Extermination . | . . . . . . Reinforcement 7 | . 2 . . 5 . Assault 2 | . . . . . 2 Garrison 3 | . . . . 1 2 Intercept . | . . . . . . Searches Triggered . | . . . . . . Construction Impeded . | . . . . . . Haulers Reinforced . | . . . . . . Active Scanning Responses . | . . . . . . Cargo Convoy Interrupts . | . . . . . . Stealth | -11 -10 -10 -10 -8 -8 --------- Run | Yrd Mat Min Sub Mat Sto Distress Signals 7 | . 2 . . 5 . Communications Jammed . | . . . . . . Distress Signals . | . . . . . . Times Spotted 114 | . 20 5 3 56 30 Peak Tracking Total 8 | . 3 3 3 6 8 Tactical Retreats 2 | . . . . 2 . Traps | -11 -10 -10 -10 -8 -8 ------- Run | Yrd Mat Min Sub Mat Sto Traps Triggered 3 | . 2 . . 1 . Indirectly . | . . . . . . Trap Hack Attempts . | . . . . . . Triggered . | . . . . . . Disarmed . | . . . . . . Reprogrammed . | . . . . . . Reused . | . . . . . . Traps Extracted . | . . . . . . Installed . | . . . . . . Triggered . | . . . . . . Machines | -11 -10 -10 -10 -8 -8 ---------- Run | Yrd Mat Min Sub Mat Sto Machines Disabled 6 | . . . . 4 2 Max in Single Turn 1 | . . . . 1 1 Garrison Access 1 | . . . . . 1 Machines Repaired . | . . . . . . Machines Dismantled . | . . . . . . Machines Sabotaged . | . . . . . . Overloaded Fab Kills . | . . . . . . Hacking | -11 -10 -10 -10 -8 -8 --------- Run | Yrd Mat Min Sub Mat Sto Machines Accessed 4 | . . . . 1 3 Terminals 3 | . . . . . 3 Fabricators . | . . . . . . Repair Stations . | . . . . . . Recycling Units 1 | . . . . 1 . Scanalyzers . | . . . . . . Garrison Access . | . . . . . . Total Hacks 16 | . . . . 4 12 Successful 3 | . . . . . 3 Failed 13 | . . . . 4 9 Catastrophic . | . . . . . . Database Lockouts . | . . . . . . Manual . | . . . . . . Terminals 12 | . . . . . 12 Fabricators . | . . . . . . Repair Stations . | . . . . . . Recycling Units 4 | . . . . 4 . Scanalyzers . | . . . . . . Garrison Access . | . . . . . . Terminal Hacks 3 | . . . . . 3 Prototype ID Bank 1 | . . . . . 1 Locate Traps 1 | . . . . . 1 Hauler Manifests 1 | . . . . . 1 Fabricator Hacks . | . . . . . . Repair Station Hacks . | . . . . . . Recycling Unit Hacks . | . . . . . . Scanalyzer . | . . . . . . Garrison Access Hacks . | . . . . . . Unauthorized Hacks . | . . . . . . Terminals . | . . . . . . Fabricators . | . . . . . . Repair Stations . | . . . . . . Recycling Units . | . . . . . . Scanalyzers . | . . . . . . Garrison Access . | . . . . . . Data Cores Recovered . | . . . . . . Used . | . . . . . . Hacking Detections 4 | . . . . 1 3 Full Trace Events 4 | . . . . 1 3 Feedback Events 1 | . . . . . 1 Corruption 1 | . . . . . 1 Feedback Blocked . | . . . . . . Robot Schematics Acquired . | . . . . . . Robots Built . | . . . . . . Authchips . | . . . . . . Time . | . . . . . . Total Robot Build Rating . | . . . . . . Part Schematics Acquired . | . . . . . . Parts Built . | . . . . . . Authchips . | . . . . . . Time . | . . . . . . Total Part Build Rating . | . . . . . . Part Studies Acquired . | . . . . . . Parts Repaired . | . . . . . . Time . | . . . . . . Parts Recycled . | . . . . . . Recycled Matter . | . . . . . . Retrieved Matter . | . . . . . . Retrieved Components . | . . . . . . Parts Scanalyzed . | . . . . . . Part Schematics Acquired . | . . . . . . Parts Damaged . | . . . . . . Bothacking | -11 -10 -10 -10 -8 -8 ------------ Run | Yrd Mat Min Sub Mat Sto Used RIF Installer . | . . . . . . Robots Hacked . | . . . . . . Non-combat . | . . . . . . Combat . | . . . . . . Robot Hacks Applied . | . . . . . . Relay Couplers Released 1 | . . . . . 1 Machine Destruction 1 | . . . . . 1 Fabnet Peak Effective % . | . . . . . . Robots Rewired . | . . . . . . Allies Hacked . | . . . . . . Hacks Repelled . | . . . . . . Allies | -11 -10 -10 -10 -8 -8 -------- Run | Yrd Mat Min Sub Mat Sto Total Allies 5 | . . 5 . . . Largest Group 5 | . . 5 2 . . Highest-Rated Group 85 | . . 85 47 . . Highest-Rated Ally 31 | . . 31 31 . . Total Orders . | . . . . . . Ally Attacks 5 | . . . 5 . . Total Damage 92 | . . . 92 . . Kills . | . . . . . . Allies Corrupted . | . . . . . . Allies Melted . | . . . . . . Intel | -11 -10 -10 -10 -8 -8 ------- Run | Yrd Mat Min Sub Mat Sto Active Infowar (turns) . | . . . . . . Robot Analysis Total . | . . . . . . Derelict Logs Recovered 2 | . . . 2 . . Drone Launches . | . . . . . . Drone Recoveries . | . . . . . . Exploration | -11 -10 -10 -10 -8 -8 ------------- Run | Yrd Mat Min Sub Mat Sto Turns Passed 5004 | 65 1199 493 441 2278 528 Spaces Moved 2100 | 44 622 265 244 790 135 Core 18 | 18 . . . . . Treads 2082 | 26 622 265 244 790 135 Legs . | . . . . . . Wheels . | . . . . . . Hover . | . . . . . . Flight . | . . . . . . Fastest Speed 50 | 50 160 160 160 160 250 Average Speed 188 | 115 160 160 160 221 250 Slowest Speed 250 | 160 160 160 160 250 250 Overloaded Moves . | . . . . . . Propulsion Burnouts . | . . . . . . Robots Hopped . | . . . . . . Potential Cave-ins . | . . . . . . Cave-ins Triggered . | . . . . . . Exploration Rate (%) 41 | 3 87 61 9 62 26 Regions Visited 5 Branch Regions 3 Pre-discovered Areas 1 | . . . 1 . . Known Exits Taken . | . . . . . . Unknown Exits Taken 5 | 1 1 1 1 1 . Scrap Searched 1 | . . 1 . . . Spaces Dug . | . . . . . . Terrain Destroyed 35 | . 2 . 4 27 2 Melee . | . . . . . . Projectile 8 | . . . . 6 2 AOE 27 | . 2 . 4 21 . Terrain Rammed . | . . . . . . Walls Destroyed . | . . . . . . Machines Disabled . | . . . . . . Actions | -11 -10 -10 -10 -8 -8 --------- Run | Yrd Mat Min Sub Mat Sto Total 2717 | 58 738 308 282 1089 242 Wait 217 | . 37 25 21 81 53 Move 2095 | 43 621 264 243 789 135 Hop . | . . . . . . Pick Up 77 | 8 17 3 2 45 2 Fast Attach . | . . . . . . Attach 47 | 6 1 2 7 26 5 Detach . | . . . . . . Swap 31 | 1 7 . . 18 5 Drop 24 | . 8 . 1 14 1 Fire 218 | . 46 14 8 109 41 Melee . | . . . . . . Ram . | . . . . . . Kick . | . . . . . . Crush 8 | . 1 . . 7 . Escape Stasis . | . . . . . . Rewire . | . . . . . . Trap . | . . . . . . Miscellaneous . | . . . . . . Route ------- -11/Scrapyard -10/Materials (discovered 5 exits: [*Mat x3] / [*Min x2]) -10/Mines (discovered 2 exits: [*Mat] / [*Sub]) -10/Subcaves -8/Materials (discovered 4 exits: [*Fac x2] / *Sto x2) -8/Storage History --------- Turn | Location | Event 5 | -11/Scrapyard | Discovered new exit (range 15) 66 | -11/Scrapyard | Entered Materials 230 | -10/Materials | Discovered new exit (range 6) 305 | -10/Materials | Build established: Mutant 381 | -10/Materials | Discovered new exit (range 3) 613 | -10/Materials | Discovered new exit (range 14) 911 | -10/Materials | Discovered new exit (range 10) 1010 | -10/Materials | Discovered new exit (range 12) 1265 | -10/Materials | Entered Mines 1369 | -10/Mines | Discovered new exit (range 7) 1462 | -10/Mines | Core integrity fell below 50% 1519 | -10/Mines | Assisted by bots powering up and referring to "LRC-V3" 1680 | -10/Mines | Discovered new exit (range 5) 1716 | -10/Mines | Found DCF Scrap (13 items) 1758 | -10/Mines | Entered Subcaves 1758 | -10/Subcaves | Accompanied by 2 allies 1759 | -10/Subcaves | Approached by a straggling Scientist 1763 | -10/Subcaves | Led the pair of lost Derelicts to an unsafe place 1763 | -10/Subcaves | Learned 2 Materials zone layouts 1814 | -10/Subcaves | Core integrity fell below 20% 1852 | -10/Subcaves | Lost 6 parts (1p2n3w) 1927 | -10/Subcaves | Learned location of Zion (-6) 2090 | -10/Subcaves | Discovered new exit (range 15) 2199 | -10/Subcaves | Entered Materials 2199 | -8/Materials | Evolved 4 slots: Utility x2, Weapon x2 2443 | -8/Materials | Lost 8 parts (2p2n1u3w) 2543 | -8/Materials | Discovered new exit (range 16) 2928 | -8/Materials | Garrison activated, responded to threat 3090 | -8/Materials | Build established: Tank 3622 | -8/Materials | Lost 5 parts (1p1n1u2w) 3812 | -8/Materials | Discovered new exit (range 13) 3857 | -8/Materials | Core integrity fell below 50% 4136 | -8/Materials | Discovered new exit (range 7) 4226 | -8/Materials | Build established: Scavenger-Tank 4316 | -8/Materials | Discovered new exit (range 16) 4477 | -8/Materials | Entered Storage 4768 | -8/Storage | Garrison activated, responded to threat 4819 | -8/Storage | Destroyed 7 combat bots 4984 | -8/Storage | Core integrity fell below 20% 5005 | -8/Storage | Destroyed by G-47 Trooper with Particle Gun Last Messages --------------- 04982_ Lgt. Nuclear Core destroyed. 04982_ K-01 Serf collects debris. 04983_ M-28 Smith repairs G-50 Soldier. 04984_ Arm. Treads severed. 04984_ Slug penetrates L-31 Rogue. 04984_ Destroyed Imp. Aluminum Leg. 04984_ Recoil Stabilizer destroyed. 04993_ K-01 Serf collects debris. 04994_ Arm. Treads destroyed. 04996_ System corrupted: Energy discharge (-3). 04996_ L-31 Rogue destroyed. 04997_ Adv. Beam Rifle destroyed. 04997_ System corrupted by crushing effect (+1). 04997_ K-01 Serf collects debris. 04999_ Pulse Rifle destroyed. 05000_ K-01 Serf collects debris. 05001_ Gauss Rifle destroyed. 05002_ M-28 Smith repairs G-47 Trooper. 05003_ B-36 Bruiser suffers critical hit (Burn). 05003_ K-01 Serf collects debris. Map ----- +----------------------------------------------------+ | | | | | | | | | | | | | | | | | | | | | | | ?????????????????????????????????????????????????? | | ?????????????????????????????????????????????????? | | ?????????????????????????????????????????????????? | | ?????????????????????????????????????????????????? | | ??????????????? ????????????????????????????????? | | ???????????????? ???????????????????????????????? | | ???????????????? ???????????????????????????????? | | ????????????????? ??????????????????????????????# | | ????????????????##+###???????????????????????????# | | ??????????????### ???????????????????????????# | | ??????????????? ???????????????????????????# | | ????????????????# ??######???????????????????# | | ????????????????# ??# [*#???????????????????# | | ???????????######" ###= ####??###???????????# | | ???????????? +%" #@b ##T####*##??????????# | | ????????????????# %gbgk # ! !#??????????# | | ????????????????# """ u#kgm # [ #??????????# | | ????????????????# G"! #%g #= #??????????# | | ????????????????# ""[[!#k k #[[ #??????????# | | ????????????????# !==% =# =#=%* !! #??????????# | | ????????????????#=!%=!* ur #=""" !! #??????????# | | ????????????????#%!####+######["Y #??????????# | | ?????????#"T"##?# *?# ==%! # """ #??????????# | | ???????# ??# """ #! !=* #??????????# | | ??????? |## """ #+###+############### | | ??????? !! !=%+= """ #%!= [ = | | ???????# ! ^ !## +[=* [ ! | | ????????# ??# "" #[ = | | ????????# ???# T" ##################### | | ????????? ? ????# "" #???????????????????? | | ????????? ??" ?????# #???????????????????? | | ???????????? ??????##"T"# ###???????????????????? | | ???????????? ????????#"""###?????????????????????? | | ?????????????????????#####???????????????????????? | | ?????????????????????????????????????????????????? | | ?????????????????????????????????????????????????? | | ?????????????????????????????????????????????????? | | ?????????????????????????????????????????????????? | | ?????????????????????????????????????????????????? | +----------------------------------------------------+ Best States ------------- Heat Dissipation 58 Energy Generation 18 Energy Capacity 265 Matter Stores 300 Matter Capacity 300 Sight Range 16 Terrain Scan Density 10 Armor Coverage 225 Weapon Cycling 15 Evasion (%) 50 Targeting Accuracy 6 Recoil Reduction 6 Item Schematics ----------------- None Robot Schematics ------------------ None Fabricated ------------ Nothing Repaired ---------- Nothing Studied --------- None Alien Tech Used ----------------- None Achievements -------------- None Challenges ------------ None Game ------ Seed MicroClaymoresEngine Manual? 0 Play Time 00:30:28 Cumulative 34.7 hours Start 2025.10.31 @ 01:30:04 End 2025.10.31 @ 02:03:09 Sessions 1 Manual Loads 0 Difficulty Rogue Special Mode None Game No. 102 Rogue 102 Adventurer 0 Explorer 0 Win Type - Total 0 Types 0/0/0/0/0/0/0/0/0/0 Lore% 22 Gallery% 27 Achievement% 22 Wizard Run 0 Options --------- Layout 1 ASCII 0 Keyboard 0 Movement Numpad Keybinds 0 Fullscreen 2 Font 24/Smallcaps Map View 50x35 Zoom Use 0% Tactical HUD 1 Map Filters NONE Filters NONE Steam 1 RUN: 4bc3a175-02a7-47ae-8d55-ca2302787f71